[Event "Titled Tuesday Blitz January 17 Late 2023"]
[White "Koutlas, Nikolaos"]
[Black "Souza, Gustavo Horokoski De"]
[WhiteFideId "25827138"]
[BlackFideId "2146584"]
[WhiteElo "2341"]
[BlackElo "1943"]
[Result "1-0"]
[Round "01"]
[TimeControl "180+2"]
[Date "2023.01.17"]
[WhiteClock "0:00:42"]
[BlackClock "0:00:01"]

1. Nf3 {[%clk 0:02:59]}  d5 {[%clk 0:02:59]} 2. d4 {[%clk 0:02:57]}  Nf6 {[%clk 0:02:58]} 3. e3 {[%clk 0:02:57]}  c5 {[%clk 0:02:54]} 4. c4 {[%clk 0:02:58]}  e6 {[%clk 0:02:49]} 5. Nc3 {[%clk 0:02:58]}  Nc6 {[%clk 0:02:46]} 6. Be2 {[%clk 0:02:57]}  cxd4 {[%clk 0:02:44]} 7. exd4 {[%clk 0:02:57]}  dxc4 {[%clk 0:02:43]} 8. Bxc4 {[%clk 0:02:55]}  Be7 {[%clk 0:02:44]} 9. O-O {[%clk 0:02:55]}  O-O {[%clk 0:02:43]} 10. Re1 {[%clk 0:02:55]}  b6 {[%clk 0:02:37]} 11. d5 {[%clk 0:02:54]}  Na5 {[%clk 0:02:30]} 12. Bb5 {[%clk 0:02:21]}  Nxd5 {[%clk 0:02:25]} 13. Nxd5 {[%clk 0:02:16]}  exd5 {[%clk 0:02:25]} 14. Nd4 {[%clk 0:02:16]}  Bf6 {[%clk 0:02:13]} 15. b3 {[%clk 0:02:01]}  a6 {[%clk 0:02:08]} 16. Bf1 {[%clk 0:01:57]}  Bb7 {[%clk 0:02:07]} 17. Bb2 {[%clk 0:01:54]}  Nc6 {[%clk 0:02:03]} 18. Rc1 {[%clk 0:01:50]}  Nxd4 {[%clk 0:02:02]} 19. Bxd4 {[%clk 0:01:51]}  Bxd4 {[%clk 0:01:52]} 20. Qxd4 {[%clk 0:01:52]}  Rc8 {[%clk 0:01:46]} 21. Rxc8 {[%clk 0:01:47]}  Qxc8 {[%clk 0:01:45]} 22. Qxb6 {[%clk 0:01:46]}  Rd8 {[%clk 0:01:29]} 23. Re7 {[%clk 0:01:43]}  Rd7 {[%clk 0:01:17]} 24. Rxd7 {[%clk 0:01:31]}  Qxd7 {[%clk 0:01:18]} 25. Bxa6 {[%clk 0:01:30]}  Bxa6 {[%clk 0:01:04]} 26. Qxa6 {[%clk 0:01:29]}  h6 {[%clk 0:01:01]} 27. a4 {[%clk 0:01:27]}  d4 {[%clk 0:01:00]} 28. Qd3 {[%clk 0:01:26]}  Qd5 {[%clk 0:00:59]} 29. h3 {[%clk 0:01:18]}  Qc5 {[%clk 0:01:00]} 30. Qc4 {[%clk 0:01:15]}  Qd6 {[%clk 0:00:44]} 31. Qd3 {[%clk 0:01:08]}  Qc5 {[%clk 0:00:44]} 32. Kf1 {[%clk 0:01:07]}  Qd5 {[%clk 0:00:21]} 33. b4 {[%clk 0:00:59]}  Qc6 {[%clk 0:00:08]} 34. b5 {[%clk 0:00:54]}  Qc1+ {[%clk 0:00:05]} 35. Ke2 {[%clk 0:00:55]}  Qc5 {[%clk 0:00:03]} 36. a5 {[%clk 0:00:53]}  Qe5+ {[%clk 0:00:03]} 37. Kf1 {[%clk 0:00:53]}  g6 {[%clk 0:00:03]} 38. a6 {[%clk 0:00:52]}  Qc5 {[%clk 0:00:03]} 39. Ke2 {[%clk 0:00:48]}  Qc1 {[%clk 0:00:03]} 40. a7 {[%clk 0:00:45]}  Qb2+ {[%clk 0:00:02]} 41. Kf3 {[%clk 0:00:44]}  Qa2 {[%clk 0:00:02]} 42. b6 {[%clk 0:00:44]}  Qd5+ {[%clk 0:00:01]} 43. Qe4 {[%clk 0:00:42]}  Qe6 {[%clk 0:00:01]} 1-0


[Site "https://www.chess.com"]

[Event "Titled Tuesday Blitz January 17 Late 2023"]
[White "Musovic, Armin"]
[Black "Marin Masis, Jose Esteban"]
[WhiteFideId "939935"]
[BlackFideId "6508146"]
[WhiteElo "2261"]
[BlackElo "1938"]
[Result "1-0"]
[Round "01"]
[TimeControl "180+2"]
[Date "2023.01.17"]
[WhiteClock "0:00:43"]
[BlackClock "0:00:14"]

1. e4 {[%clk 0:02:53]}  c5 {[%clk 0:02:58]} 2. c3 {[%clk 0:02:52]}  d5 {[%clk 0:02:57]} 3. exd5 {[%clk 0:02:49]}  Qxd5 {[%clk 0:02:57]} 4. Na3 {[%clk 0:02:50]}  Nf6 {[%clk 0:02:56]} 5. h3 {[%clk 0:02:49]}  g6 {[%clk 0:02:56]} 6. Nf3 {[%clk 0:02:50]}  Bg7 {[%clk 0:02:56]} 7. Bc4 {[%clk 0:02:50]}  Qd8 {[%clk 0:02:55]} 8. Qa4+ {[%clk 0:02:41]}  Bd7 {[%clk 0:02:53]} 9. Qb3 {[%clk 0:02:41]}  O-O {[%clk 0:02:53]} 10. Qxb7 {[%clk 0:02:42]}  Bc6 {[%clk 0:02:45]} 11. Qb3 {[%clk 0:02:41]}  Bxf3 {[%clk 0:02:40]} 12. gxf3 {[%clk 0:02:42]}  Nc6 {[%clk 0:02:39]} 13. Be2 {[%clk 0:02:37]}  Qd7 {[%clk 0:02:23]} 14. d3 {[%clk 0:02:22]}  Ne5 {[%clk 0:02:12]} 15. Be3 {[%clk 0:02:11]}  Nxd3+ {[%clk 0:02:04]} 16. Kf1 {[%clk 0:02:12]}  Rfd8 {[%clk 0:01:43]} 17. Qc2 {[%clk 0:01:55]}  Ne5 {[%clk 0:01:05]} 18. Rd1 {[%clk 0:01:41]}  Qc6 {[%clk 0:01:03]} 19. Kg2 {[%clk 0:01:36]}  Nd5 {[%clk 0:00:54]} 20. Bc1 {[%clk 0:01:22]}  Qf6 {[%clk 0:00:47]} 21. Qe4 {[%clk 0:01:18]}  Nb6 {[%clk 0:00:35]} 22. f4 {[%clk 0:01:15]}  Ned7 {[%clk 0:00:31]} 23. Bf3 {[%clk 0:01:14]}  Rab8 {[%clk 0:00:29]} 24. Rhe1 {[%clk 0:01:14]}  e6 {[%clk 0:00:28]} 25. Nc4 {[%clk 0:00:52]}  Qh4 {[%clk 0:00:27]} 26. Ne5 {[%clk 0:00:46]}  Nf6 {[%clk 0:00:23]} 27. Rxd8+ {[%clk 0:00:45]}  Rxd8 {[%clk 0:00:22]} 28. Qb7 {[%clk 0:00:45]}  Nbd5 {[%clk 0:00:18]} 29. Qxf7+ {[%clk 0:00:43]}  Kh8 {[%clk 0:00:18]} 30. Qxe6 {[%clk 0:00:43]}  Nxf4+ {[%clk 0:00:17]} 31. Bxf4 {[%clk 0:00:43]}  Qxf4 {[%clk 0:00:15]} 32. Nf7+ {[%clk 0:00:42]}  Kg8 {[%clk 0:00:14]} 33. Nxd8+ {[%clk 0:00:43]} 1-0


[Site "https://www.chess.com"]

[Event "Titled Tuesday Blitz January 17 Late 2023"]
[White "Coe, William"]
[Black "Martinez Reyes, Pedro Ramon"]
[WhiteFideId "30913624"]
[BlackFideId "3901807"]
[WhiteElo "2078"]
[BlackElo "2376"]
[Result "0-1"]
[Round "01"]
[TimeControl "180+2"]
[Date "2023.01.17"]
[WhiteClock "0:01:02"]
[BlackClock "0:01:03"]

1. e4 {[%clk 0:03:00]}  c6 {[%clk 0:02:47]} 2. d4 {[%clk 0:02:58]}  d5 {[%clk 0:02:48]} 3. Nc3 {[%clk 0:02:58]}  dxe4 {[%clk 0:02:47]} 4. Nxe4 {[%clk 0:02:59]}  Bf5 {[%clk 0:02:47]} 5. Ng3 {[%clk 0:02:59]}  Bg6 {[%clk 0:02:48]} 6. Nf3 {[%clk 0:03:00]}  Nd7 {[%clk 0:02:47]} 7. Bd3 {[%clk 0:03:00]}  Ngf6 {[%clk 0:02:45]} 8. O-O {[%clk 0:03:00]}  Qc7 {[%clk 0:02:45]} 9. c4 {[%clk 0:02:59]}  Bxd3 {[%clk 0:02:44]} 10. Qxd3 {[%clk 0:02:59]}  e6 {[%clk 0:02:45]} 11. a3 {[%clk 0:02:59]}  Bd6 {[%clk 0:02:44]} 12. b4 {[%clk 0:02:56]}  O-O {[%clk 0:02:44]} 13. Rd1 {[%clk 0:02:53]}  Rfe8 {[%clk 0:02:43]} 14. Bb2 {[%clk 0:02:50]}  Rad8 {[%clk 0:02:42]} 15. Ne4 {[%clk 0:02:42]}  Nxe4 {[%clk 0:02:38]} 16. Qxe4 {[%clk 0:02:43]}  Nf6 {[%clk 0:02:39]} 17. Qe2 {[%clk 0:02:42]}  a6 {[%clk 0:02:31]} 18. Rd3 {[%clk 0:02:38]}  b5 {[%clk 0:02:31]} 19. Rc1 {[%clk 0:02:25]}  Qb7 {[%clk 0:02:31]} 20. c5 {[%clk 0:02:21]}  Bf4 {[%clk 0:02:27]} 21. Rcd1 {[%clk 0:02:21]}  Nd5 {[%clk 0:02:28]} 22. Bc1 {[%clk 0:02:20]}  Bxc1 {[%clk 0:02:26]} 23. Rxc1 {[%clk 0:02:19]}  Nf4 {[%clk 0:02:27]} 24. Qe4 {[%clk 0:02:12]}  Nxd3 {[%clk 0:02:27]} 25. Qxd3 {[%clk 0:02:12]}  e5 {[%clk 0:02:28]} 26. Re1 {[%clk 0:02:06]}  exd4 {[%clk 0:02:23]} 27. Rxe8+ {[%clk 0:02:06]}  Rxe8 {[%clk 0:02:24]} 28. Qxd4 {[%clk 0:02:05]}  Qe7 {[%clk 0:02:21]} 29. g3 {[%clk 0:01:55]}  Qe4 {[%clk 0:02:10]} 30. Qd7 {[%clk 0:01:46]}  h6 {[%clk 0:02:10]} 31. Nd4 {[%clk 0:01:36]}  Re7 {[%clk 0:01:22]} 32. Qc8+ {[%clk 0:01:28]}  Re8 {[%clk 0:01:18]} 33. Qd7 {[%clk 0:01:27]}  Kh7 {[%clk 0:01:17]} 34. Nxc6 {[%clk 0:01:22]}  Qb1+ {[%clk 0:01:09]} 35. Kg2 {[%clk 0:01:21]}  Re1 {[%clk 0:01:05]} 36. Qxf7 {[%clk 0:01:02]}  Qe4+ {[%clk 0:01:03]} 0-1


[Site "https://www.chess.com"]

[Event "Titled Tuesday Blitz January 17 Late 2023"]
[White "Krishnan, Varun"]
[Black "Guevara Sanchez, Erick Marvin"]
[WhiteFideId "5054508"]
[BlackFideId "6700136"]
[WhiteElo "2341"]
[BlackElo "2073"]
[Result "1/2-1/2"]
[Round "01"]
[TimeControl "180+2"]
[Date "2023.01.17"]
[WhiteClock "0:01:53"]
[BlackClock "0:02:11"]

1. d4 {[%clk 0:02:37]}  d5 {[%clk 0:02:59]} 2. c4 {[%clk 0:02:37]}  e6 {[%clk 0:02:58]} 3. Nf3 {[%clk 0:02:33]}  Nf6 {[%clk 0:02:58]} 4. g3 {[%clk 0:02:34]}  c5 {[%clk 0:02:58]} 5. cxd5 {[%clk 0:02:31]}  exd5 {[%clk 0:02:58]} 6. Bg2 {[%clk 0:02:31]}  Be7 {[%clk 0:02:56]} 7. O-O {[%clk 0:02:31]}  O-O {[%clk 0:02:55]} 8. Nc3 {[%clk 0:02:31]}  Nc6 {[%clk 0:02:55]} 9. Bg5 {[%clk 0:02:26]}  c4 {[%clk 0:02:55]} 10. Ne5 {[%clk 0:02:22]}  Be6 {[%clk 0:02:52]} 11. b3 {[%clk 0:02:13]}  Qa5 {[%clk 0:02:42]} 12. Qd2 {[%clk 0:01:59]}  Bb4 {[%clk 0:02:40]} 13. Bxf6 {[%clk 0:01:56]}  gxf6 {[%clk 0:02:37]} 14. Qh6 {[%clk 0:01:52]}  fxe5 {[%clk 0:02:12]} 15. Qg5+ {[%clk 0:01:52]}  Kh8 {[%clk 0:02:12]} 16. Qf6+ {[%clk 0:01:53]}  Kg8 {[%clk 0:02:12]} 17. Qg5+ {[%clk 0:01:53]}  Kh8 {[%clk 0:02:10]} 18. Qf6+ {[%clk 0:01:53]}  Kg8 {[%clk 0:02:11]} 19. Qg5+ {[%clk 0:01:53]} 1/2-1/2


[Site "https://www.chess.com"]

[Event "Titled Tuesday Blitz January 17 Late 2023"]
[White "Fisher_TheGalactic"]
[Black "Lindholt, Malik"]
[BlackFideId "1404490"]
[WhiteElo "2537"]
[BlackElo "2177"]
[Result "1-0"]
[Round "01"]
[TimeControl "180+2"]
[Date "2023.01.17"]
[WhiteClock "0:01:11"]
[BlackClock "0:01:00"]

1. Nf3 {[%clk 0:02:26]}  Nf6 {[%clk 0:02:59]} 2. g3 {[%clk 0:02:25]}  g6 {[%clk 0:02:59]} 3. Bg2 {[%clk 0:02:25]}  Bg7 {[%clk 0:02:59]} 4. O-O {[%clk 0:02:25]}  O-O {[%clk 0:02:59]} 5. d3 {[%clk 0:02:24]}  d5 {[%clk 0:02:56]} 6. Nbd2 {[%clk 0:02:24]}  c5 {[%clk 0:02:53]} 7. e4 {[%clk 0:02:23]}  Nc6 {[%clk 0:02:46]} 8. exd5 {[%clk 0:02:23]}  Nxd5 {[%clk 0:02:47]} 9. Nc4 {[%clk 0:02:24]}  b6 {[%clk 0:02:38]} 10. Re1 {[%clk 0:02:15]}  Bb7 {[%clk 0:02:37]} 11. Nfe5 {[%clk 0:02:14]}  Nxe5 {[%clk 0:02:35]} 12. Nxe5 {[%clk 0:02:15]}  Qc7 {[%clk 0:02:29]} 13. Nc4 {[%clk 0:01:52]}  Rfe8 {[%clk 0:02:18]} 14. c3 {[%clk 0:01:41]}  Rad8 {[%clk 0:02:13]} 15. Qc2 {[%clk 0:01:40]}  Ba6 {[%clk 0:02:00]} 16. Bd2 {[%clk 0:01:38]}  Bb7 {[%clk 0:01:26]} 17. Rad1 {[%clk 0:01:36]}  Ba8 {[%clk 0:01:26]} 18. Ne3 {[%clk 0:01:32]}  Nxe3 {[%clk 0:01:23]} 19. Bxe3 {[%clk 0:01:33]}  Bxg2 {[%clk 0:01:23]} 20. Kxg2 {[%clk 0:01:29]}  Qc6+ {[%clk 0:01:20]} 21. Kg1 {[%clk 0:01:23]}  Rd7 {[%clk 0:01:19]} 22. Qb3 {[%clk 0:01:18]}  Red8 {[%clk 0:01:13]} 23. Bf4 {[%clk 0:01:12]}  Qd5 {[%clk 0:01:01]} 24. Qxd5 {[%clk 0:01:11]}  Rxd5 {[%clk 0:01:01]} 25. Rxe7 {[%clk 0:01:12]}  Rxd3 {[%clk 0:01:01]} 26. Rxd3 {[%clk 0:01:11]}  Rxd3 {[%clk 0:01:00]} 27. Re8+ {[%clk 0:01:11]} 1-0


[Site "https://www.chess.com"]

[Event "Titled Tuesday Blitz January 17 Late 2023"]
[White "Santos Flores, Alberto"]
[Black "Vargas, Mauricio"]
[WhiteFideId "3601234"]
[BlackFideId "4404572"]
[WhiteElo "2164"]
[BlackElo "2035"]
[Result "1/2-1/2"]
[Round "01"]
[TimeControl "180+2"]
[Date "2023.01.17"]
[WhiteClock "0:01:35"]
[BlackClock "0:00:57"]

1. e4 {[%clk 0:02:59]}  c5 {[%clk 0:02:46]} 2. Nf3 {[%clk 0:02:58]}  d6 {[%clk 0:02:43]} 3. Bb5+ {[%clk 0:02:58]}  Nd7 {[%clk 0:02:40]} 4. d4 {[%clk 0:02:57]}  cxd4 {[%clk 0:02:39]} 5. Qxd4 {[%clk 0:02:58]}  Nf6 {[%clk 0:02:36]} 6. Nc3 {[%clk 0:02:57]}  g6 {[%clk 0:02:29]} 7. Bg5 {[%clk 0:02:50]}  Bg7 {[%clk 0:02:28]} 8. O-O-O {[%clk 0:02:46]}  O-O {[%clk 0:02:26]} 9. h4 {[%clk 0:02:37]}  a6 {[%clk 0:02:13]} 10. Bc4 {[%clk 0:02:27]}  b5 {[%clk 0:02:10]} 11. Bb3 {[%clk 0:02:27]}  Bb7 {[%clk 0:02:07]} 12. Qe3 {[%clk 0:02:20]}  Ng4 {[%clk 0:01:59]} 13. Qd2 {[%clk 0:02:19]}  Nc5 {[%clk 0:01:32]} 14. h5 {[%clk 0:02:03]}  Nxb3+ {[%clk 0:01:31]} 15. axb3 {[%clk 0:02:02]}  b4 {[%clk 0:01:28]} 16. Nd5 {[%clk 0:02:01]}  Qa5 {[%clk 0:01:25]} 17. Nxe7+ {[%clk 0:01:58]}  Kh8 {[%clk 0:01:24]} 18. Kb1 {[%clk 0:01:58]}  Bxe4 {[%clk 0:01:14]} 19. h6 {[%clk 0:01:45]}  Bxb2 {[%clk 0:01:12]} 20. Kxb2 {[%clk 0:01:43]}  Qa3+ {[%clk 0:01:11]} 21. Kb1 {[%clk 0:01:41]}  Qxb3+ {[%clk 0:01:09]} 22. Ka1 {[%clk 0:01:39]}  Qa3+ {[%clk 0:01:04]} 23. Kb1 {[%clk 0:01:39]}  Qb3+ {[%clk 0:01:01]} 24. Kc1 {[%clk 0:01:35]}  Qa3+ {[%clk 0:00:57]} 25. Kb1 {[%clk 0:01:35]}  Qb3+ {[%clk 0:00:57]} 1/2-1/2


[Site "https://www.chess.com"]

[Event "Titled Tuesday Blitz January 17 Late 2023"]
[White "Flores Quillas, Diego Saul Rodri"]
[Black "Nakamura, Hikaru"]
[WhiteFideId "3822508"]
[BlackFideId "2016192"]
[WhiteElo "2359"]
[BlackElo "2775"]
[Result "0-1"]
[Round "02"]
[TimeControl "180+2"]
[Date "2023.01.17"]
[WhiteClock "0:00:13"]
[BlackClock "0:01:32"]

1. e4 {[%clk 0:03:00]}  c6 {[%clk 0:02:58]} 2. d4 {[%clk 0:02:59]}  d5 {[%clk 0:02:57]} 3. Nc3 {[%clk 0:02:59]}  dxe4 {[%clk 0:02:57]} 4. Nxe4 {[%clk 0:02:59]}  Nf6 {[%clk 0:02:57]} 5. Nxf6+ {[%clk 0:02:57]}  gxf6 {[%clk 0:02:58]} 6. c3 {[%clk 0:02:55]}  Bf5 {[%clk 0:02:56]} 7. Nf3 {[%clk 0:02:48]}  e6 {[%clk 0:02:56]} 8. g3 {[%clk 0:02:48]}  Bd6 {[%clk 0:02:54]} 9. Bg2 {[%clk 0:02:48]}  Nd7 {[%clk 0:02:54]} 10. O-O {[%clk 0:02:48]}  Bg6 {[%clk 0:02:54]} 11. b4 {[%clk 0:02:46]}  O-O {[%clk 0:02:54]} 12. Bh6 {[%clk 0:02:31]}  Re8 {[%clk 0:02:54]} 13. Nh4 {[%clk 0:02:30]}  a5 {[%clk 0:02:53]} 14. a3 {[%clk 0:02:29]}  Bf8 {[%clk 0:02:53]} 15. Bxf8 {[%clk 0:02:19]}  Rxf8 {[%clk 0:02:50]} 16. f4 {[%clk 0:02:18]}  f5 {[%clk 0:02:48]} 17. Qc2 {[%clk 0:02:07]}  Bh5 {[%clk 0:02:43]} 18. Rfb1 {[%clk 0:01:49]}  Qc7 {[%clk 0:02:39]} 19. b5 {[%clk 0:01:26]}  Nf6 {[%clk 0:02:30]} 20. bxc6 {[%clk 0:01:11]}  bxc6 {[%clk 0:02:30]} 21. Qa4 {[%clk 0:01:09]}  Rac8 {[%clk 0:02:28]} 22. Rb2 {[%clk 0:01:06]}  Rfd8 {[%clk 0:02:23]} 23. Rab1 {[%clk 0:01:05]}  Nd5 {[%clk 0:02:17]} 24. Qc4 {[%clk 0:01:06]}  c5 {[%clk 0:02:14]} 25. Rb7 {[%clk 0:01:05]}  Qd6 {[%clk 0:02:12]} 26. Bxd5 {[%clk 0:00:59]}  Qxd5 {[%clk 0:02:12]} 27. Qxd5 {[%clk 0:00:56]}  Rxd5 {[%clk 0:02:12]} 28. R7b5 {[%clk 0:00:50]}  Rd7 {[%clk 0:02:06]} 29. dxc5 {[%clk 0:00:48]}  Rdc7 {[%clk 0:02:03]} 30. Rxa5 {[%clk 0:00:47]}  Rxc5 {[%clk 0:02:04]} 31. Rxc5 {[%clk 0:00:47]}  Rxc5 {[%clk 0:02:05]} 32. Ra1 {[%clk 0:00:47]}  Rxc3 {[%clk 0:02:02]} 33. a4 {[%clk 0:00:47]}  Be2 {[%clk 0:02:02]} 34. Kf2 {[%clk 0:00:46]}  Ba6 {[%clk 0:02:02]} 35. Nf3 {[%clk 0:00:45]}  Kf8 {[%clk 0:02:03]} 36. a5 {[%clk 0:00:41]}  Ke7 {[%clk 0:02:02]} 37. Rb1 {[%clk 0:00:26]}  Ra3 {[%clk 0:02:00]} 38. Nd4 {[%clk 0:00:26]}  Kd7 {[%clk 0:01:56]} 39. Rb6 {[%clk 0:00:26]}  Rxa5 {[%clk 0:01:55]} 40. Nb3 {[%clk 0:00:21]}  Ra2+ {[%clk 0:01:55]} 41. Ke3 {[%clk 0:00:22]}  Kc7 {[%clk 0:01:53]} 42. Rb4 {[%clk 0:00:21]}  Rxh2 {[%clk 0:01:51]} 43. Nc5 {[%clk 0:00:22]}  Ra2 {[%clk 0:01:45]} 44. Rb1 {[%clk 0:00:22]}  Be2 {[%clk 0:01:40]} 45. Rh1 {[%clk 0:00:19]}  h5 {[%clk 0:01:40]} 46. Rh2 {[%clk 0:00:19]}  Ra3+ {[%clk 0:01:39]} 47. Kd4 {[%clk 0:00:19]}  Bg4 {[%clk 0:01:37]} 48. Nd3 {[%clk 0:00:16]}  f6 {[%clk 0:01:34]} 49. Rc2+ {[%clk 0:00:15]}  Kd6 {[%clk 0:01:34]} 50. Rc4 {[%clk 0:00:13]}  Be2 {[%clk 0:01:32]} 0-1


[Site "https://www.chess.com"]

[Event "Titled Tuesday Blitz January 17 Late 2023"]
[White "Hamitevici, Vladimir"]
[Black "Naroditsky, Daniel"]
[WhiteFideId "13902393"]
[BlackFideId "2026961"]
[WhiteElo "2496"]
[BlackElo "2618"]
[Result "1-0"]
[Round "02"]
[TimeControl "180+2"]
[Date "2023.01.17"]
[WhiteClock "0:00:13"]
[BlackClock "0:00:07"]

1. a3 {[%clk 0:02:59]}  d5 {[%clk 0:02:56]} 2. Nf3 {[%clk 0:02:57]}  Nf6 {[%clk 0:02:51]} 3. e3 {[%clk 0:02:56]}  g6 {[%clk 0:02:50]} 4. c4 {[%clk 0:02:56]}  c6 {[%clk 0:02:46]} 5. b3 {[%clk 0:02:49]}  Bg7 {[%clk 0:02:45]} 6. Bb2 {[%clk 0:02:49]}  O-O {[%clk 0:02:45]} 7. Be2 {[%clk 0:02:42]}  Bg4 {[%clk 0:02:45]} 8. d3 {[%clk 0:02:39]}  Nbd7 {[%clk 0:02:45]} 9. Nbd2 {[%clk 0:02:39]}  Re8 {[%clk 0:02:38]} 10. h3 {[%clk 0:02:36]}  Bxf3 {[%clk 0:02:38]} 11. Nxf3 {[%clk 0:02:35]}  e5 {[%clk 0:02:38]} 12. cxd5 {[%clk 0:02:35]}  Nxd5 {[%clk 0:02:30]} 13. Qc2 {[%clk 0:02:34]}  a5 {[%clk 0:02:25]} 14. O-O {[%clk 0:02:32]}  Qe7 {[%clk 0:02:09]} 15. Rfe1 {[%clk 0:02:25]}  Qc5 {[%clk 0:01:49]} 16. Rac1 {[%clk 0:02:18]}  Qxc2 {[%clk 0:01:45]} 17. Rxc2 {[%clk 0:02:18]}  c5 {[%clk 0:01:31]} 18. Nd2 {[%clk 0:02:16]}  a4 {[%clk 0:01:18]} 19. Bf3 {[%clk 0:02:12]}  N5f6 {[%clk 0:01:04]} 20. bxa4 {[%clk 0:02:02]}  Rxa4 {[%clk 0:00:57]} 21. Bxb7 {[%clk 0:01:59]}  Rb8 {[%clk 0:00:57]} 22. Bc6 {[%clk 0:01:45]}  Ra6 {[%clk 0:00:57]} 23. Bf3 {[%clk 0:01:34]}  Rab6 {[%clk 0:00:47]} 24. Nc4 {[%clk 0:01:34]}  Rb3 {[%clk 0:00:48]} 25. Bxe5 {[%clk 0:01:25]}  Nxe5 {[%clk 0:00:48]} 26. Nxe5 {[%clk 0:01:26]}  Bf8 {[%clk 0:00:33]} 27. a4 {[%clk 0:01:14]}  Ra3 {[%clk 0:00:31]} 28. Bc6 {[%clk 0:01:13]}  Rc8 {[%clk 0:00:26]} 29. Bb5 {[%clk 0:01:10]}  Nd5 {[%clk 0:00:26]} 30. Rb1 {[%clk 0:01:01]}  Nb4 {[%clk 0:00:26]} 31. Rxb4 {[%clk 0:00:59]}  Ra1+ {[%clk 0:00:20]} 32. Kh2 {[%clk 0:00:58]}  Bd6 {[%clk 0:00:16]} 33. f4 {[%clk 0:00:52]}  f6 {[%clk 0:00:16]} 34. Bc4+ {[%clk 0:00:32]}  Kf8 {[%clk 0:00:15]} 35. Rb6 {[%clk 0:00:30]}  Be7 {[%clk 0:00:11]} 36. Nd7+ {[%clk 0:00:28]}  Kg7 {[%clk 0:00:11]} 37. Rb7 {[%clk 0:00:27]}  Kh6 {[%clk 0:00:11]} 38. Nb6 {[%clk 0:00:25]}  Re8 {[%clk 0:00:10]} 39. Bb5 {[%clk 0:00:25]}  Rd8 {[%clk 0:00:06]} 40. Rxe7 {[%clk 0:00:26]}  c4 {[%clk 0:00:07]} 41. Bxc4 {[%clk 0:00:25]}  g5 {[%clk 0:00:08]} 42. fxg5+ {[%clk 0:00:24]}  fxg5 {[%clk 0:00:09]} 43. Nd5 {[%clk 0:00:24]}  g4 {[%clk 0:00:10]} 44. hxg4 {[%clk 0:00:24]}  Rg8 {[%clk 0:00:10]} 45. Rxh7+ {[%clk 0:00:22]}  Kg5 {[%clk 0:00:06]} 46. Rh5+ {[%clk 0:00:16]}  Kg6 {[%clk 0:00:07]} 47. Nf4+ {[%clk 0:00:16]}  Kg7 {[%clk 0:00:07]} 48. Bxg8 {[%clk 0:00:16]}  Kxg8 {[%clk 0:00:08]} 49. Rg5+ {[%clk 0:00:16]}  Kh7 {[%clk 0:00:08]} 50. Rc7+ {[%clk 0:00:16]}  Kh8 {[%clk 0:00:08]} 51. Rh5+ {[%clk 0:00:14]}  Kg8 {[%clk 0:00:09]} 52. Kg3 {[%clk 0:00:14]}  Rf1 {[%clk 0:00:08]} 53. Rg5+ {[%clk 0:00:14]}  Kh8 {[%clk 0:00:08]} 54. Rf5 {[%clk 0:00:13]}  Kg8 {[%clk 0:00:08]} 55. Rc8+ {[%clk 0:00:14]}  Kg7 {[%clk 0:00:09]} 56. Ne6+ {[%clk 0:00:13]}  Kg6 {[%clk 0:00:07]} 57. Rxf1 {[%clk 0:00:13]} 1-0


[Site "https://www.chess.com"]

[Event "Titled Tuesday Blitz January 17 Late 2023"]
[White "Pershin, Denis"]
[Black "Sarana, Alexey"]
[WhiteFideId "24165506"]
[BlackFideId "24133795"]
[WhiteElo "2366"]
[BlackElo "2685"]
[Result "0-1"]
[Round "02"]
[TimeControl "180+2"]
[Date "2023.01.17"]
[WhiteClock "0:00:10"]
[BlackClock "0:01:12"]

1. b3 {[%clk 0:03:00]}  d5 {[%clk 0:02:37]} 2. Bb2 {[%clk 0:03:01]}  c5 {[%clk 0:02:38]} 3. Nf3 {[%clk 0:02:58]}  Nc6 {[%clk 0:02:35]} 4. e3 {[%clk 0:02:57]}  a6 {[%clk 0:02:36]} 5. d4 {[%clk 0:02:56]}  cxd4 {[%clk 0:02:36]} 6. exd4 {[%clk 0:02:56]}  Bf5 {[%clk 0:02:36]} 7. a3 {[%clk 0:02:45]}  e6 {[%clk 0:02:36]} 8. Nbd2 {[%clk 0:02:44]}  Nf6 {[%clk 0:02:34]} 9. Be2 {[%clk 0:02:45]}  h6 {[%clk 0:02:33]} 10. O-O {[%clk 0:02:45]}  Bd6 {[%clk 0:02:34]} 11. c4 {[%clk 0:02:44]}  O-O {[%clk 0:02:31]} 12. Re1 {[%clk 0:02:44]}  Ne4 {[%clk 0:02:29]} 13. Nf1 {[%clk 0:02:43]}  Bc7 {[%clk 0:02:27]} 14. Ne3 {[%clk 0:02:38]}  Bg6 {[%clk 0:02:25]} 15. Rc1 {[%clk 0:02:31]}  Bh5 {[%clk 0:02:22]} 16. cxd5 {[%clk 0:02:00]}  exd5 {[%clk 0:02:21]} 17. Ne5 {[%clk 0:02:00]}  Bxe2 {[%clk 0:01:54]} 18. Qxe2 {[%clk 0:02:01]}  Bxe5 {[%clk 0:01:33]} 19. dxe5 {[%clk 0:02:02]}  Re8 {[%clk 0:01:33]} 20. Rcd1 {[%clk 0:01:49]}  d4 {[%clk 0:01:31]} 21. Nf5 {[%clk 0:01:33]}  Rxe5 {[%clk 0:01:20]} 22. Nxd4 {[%clk 0:01:32]}  Nc3 {[%clk 0:01:17]} 23. Qxe5 {[%clk 0:00:07]}  Nxe5 {[%clk 0:01:12]} 24. Bxc3 {[%clk 0:00:08]}  Qc7 {[%clk 0:01:13]} 25. Bb2 {[%clk 0:00:08]}  Ng4 {[%clk 0:01:13]} 26. g3 {[%clk 0:00:08]}  Rd8 {[%clk 0:01:11]} 27. Nf5 {[%clk 0:00:08]}  Rxd1 {[%clk 0:01:11]} 28. Rxd1 {[%clk 0:00:09]}  Qc2 {[%clk 0:01:11]} 29. Rd8+ {[%clk 0:00:10]}  Kh7 {[%clk 0:01:12]} 0-1


[Site "https://www.chess.com"]